fUST/lending_fUST_20251021
["ID","MTS","AMOUNT","RATE_DAILY","PERIOD"]
[391969451,1761034237689,-788.77,0.0002627,10]
[391969452,1761034237699,-7220.83000016,0.0002628,2]
[391969453,1761034237710,-9410.88605436,0.0002628,2]
[391969454,1761034237740,-1395.3878448,0.0002628,2]
[391969455,1761034237751,-638.33157139,0.0002628,2]
[391969456,1761034237763,-469.13541551,0.0002628,2]
[391969486,1761034239839,-4609.01328906,0.0002628,2]
[391969487,1761034239851,-2328.1165735,0.0002628,2]
[391969488,1761034239872,-5593.87092956,0.0002628,2]
[391969489,1761034239883,-666.34338392,0.0002628,2]
[391969493,1761034239908,-331.33674966,0.0002628,2]
[391969494,1761034239920,-13788.80298336,0.0002628,2]
[391969543,1761034243232,-1416.60701806,0.0002628,2]
[391969544,1761034243243,-17348.85766401,0.0002628,2]
[391969545,1761034243298,-10883.06109041,0.0002628,2]
[391969546,1761034243359,-274.2488495,0.0002628,2]
[391969547,1761034243370,-2107.09432374,0.0002628,2]
[391969585,1761034246239,-707.121888,0.0002628,2]
[391969586,1761034246295,-765.12857226,0.0002628,2]
[391969587,1761034246308,-514.809326,0.0002628,2]
[391969588,1761034246346,-7947.56342052,0.0002628,2]
[391969612,1761034890580,5000.0,0.00024075,2]
[391969626,1761035040860,434.877775,0.00013699,2]
[391969627,1761035041061,434.877775,0.00020187,2]
[391969628,1761035185473,151.38280119,0.00024027,2]
[391969631,1761035271888,-318.01093225,0.00024703,2]
[391969632,1761035275626,-198.07679597,0.00024703,2]
[391969633,1761035291103,531.66785006,0.000237,14]
[391969634,1761035301332,-220.52147883,0.00024456,2]
[391969635,1761035314022,10000.01,0.00024,60]
[391969636,1761035314046,10000.01,0.00024,60]
[391969637,1761035322707,168.59,0.00024,14]
[391969639,1761035327488,10000.0,0.0003,120]
[391969670,1761035431885,-713.93764784,0.00024142,2]
[391969673,1761035431901,-295.55531714,0.00024456,2]
[391969675,1761035431916,-300.0,0.00026169,2]
[391969677,1761035431929,-150.68164935,0.0002617,2]
[391969680,1761035431940,-890.25,0.0002617,3]
[391969682,1761035431954,-445.12,0.0002617,3]
[391969685,1761035431968,-222.56,0.0002617,3]
[391969687,1761035431981,-667.71,0.0002617,3]
[391969689,1761035431994,-296.59015269,0.0002617,2]
[391969692,1761035432010,-349.82,0.0002617,10]
[391969694,1761035432026,-599.01,0.0002617,10]
[391969697,1761035432040,-499.17,0.0002617,10]
[391969699,1761035432051,-402.47597664,0.0002617,2]
[391969701,1761035432064,-2783.67749167,0.0002618,2]
[391969704,1761035432086,-686.15752067,0.0002618,2]
[391969707,1761035432104,-9748.598,0.0002618,2]
[391969710,1761035432118,-10108.76713248,0.0002618,2]
[391969712,1761035432134,-24267.44637845,0.0002618,2]
[391969715,1761035432151,-1145.15,0.0002618,2]
[391969717,1761035432164,-3068.87064532,0.0002618,2]
[391969766,1761035437877,-2688.33982633,0.0002618,2]
[391969768,1761035437889,-947.2707639,0.0002618,2]
[391969771,1761035437900,-1996.80659874,0.0002618,2]
[391969773,1761035437911,-296.99438603,0.0002618,2]
[391969847,1761035442781,-415.98,0.0002617,10]
[391969848,1761035442791,-8761.07099164,0.0002618,2]
[391969856,1761035445521,-303500.85026477,0.0002618,2]
[391969857,1761035445530,-1493.84841112,0.0002627,2]
[391969858,1761035445540,-500.0,0.0002637,2]
[391969859,1761035445549,-500.0,0.0002638,2]
[391969860,1761035445558,-500.0,0.0002638,2]
[391969861,1761035445567,-500.0,0.0002638,2]
[391969862,1761035445576,-500.0,0.0002638,2]
[391969863,1761035445585,-500.0,0.0002638,2]
[391969864,1761035445594,-500.0,0.0002638,2]
[391969865,1761035445602,-500.0,0.0002638,2]
[391969866,1761035445612,-500.0,0.0002638,2]
[391969867,1761035445622,-387.40121016,0.0002638,2]
[391969868,1761035445632,-2309.91,0.000264,7]
[391969869,1761035445641,-17043.942982,0.0002645,2]
[391969870,1761035445652,-434.877775,0.00026676,2]
[391969871,1761035445661,-219.18029961,0.00026751,2]
[391969872,1761035445671,-600.0,0.00026795,30]
[391969873,1761035445680,-168.0,0.00027071,2]
[391969874,1761035445690,-296.59015265,0.00027238,2]
[391969875,1761035445699,-175.885,0.00027479,16]
[391969876,1761035445709,-168.0,0.00027503,2]
[391969877,1761035445718,-1780.5,0.0002754,3]
[391969878,1761035445729,-890.24,0.0002754,3]
[391969879,1761035445739,-445.12,0.0002754,3]
[391969880,1761035445749,-251.43098905,0.00027631,2]
[391969881,1761035445758,-4763.99,0.000277,7]
[391969882,1761035445767,-168.0,0.00027725,2]
[391969883,1761035445776,-168.0,0.00027826,2]
[391969884,1761035445785,-168.0,0.00027907,2]
[391969886,1761035445795,-168.0,0.00028112,2]
[391969887,1761035445804,-296.59015265,0.00028306,2]
[391969888,1761035445813,-420.0,0.00028316,2]
[391969889,1761035445823,-610.27,0.000285,7]
[391969890,1761035445833,-339.42381089,0.00028613,2]
[391969891,1761035445842,-168.0,0.000289,2]
[391969892,1761035445851,-296.59015265,0.00029374,2]
[391969893,1761035445861,-720.0,0.00029474,30]
[391969894,1761035445870,-3803.0177271,0.00029896,2]
[391969895,1761035445879,-1493.8484111,0.00029958,2]
[391969896,1761035445888,-1700.03343874,0.0003,2]
[391969897,1761035445898,-207.44,0.00030137,30]
[391969898,1761035445908,-3172.0,0.00030137,2]
[391969899,1761035445918,-296.59015265,0.00030442,2]
[391969900,1761035445927,-2164.0,0.00030479,2]
[391969901,1761035445937,-411.0,0.00030479,2]
[391969902,1761035445946,-428.678,0.00030479,2]
[391969903,1761035445955,-587.0,0.00030639,2]
[391969904,1761035445964,-848.5679545,0.00030664,2]
[391969905,1761035445973,-153.16,0.00030716,15]
[391969906,1761035445983,-153.16,0.00030816,15]
[391969907,1761035445993,-153.16,0.00030916,15]
[391969908,1761035446002,-403.4556715,0.00031,120]
[391969909,1761035446012,-167.2349892,0.00031,120]
[391969910,1761035446021,-189.49093953,0.00031,120]
[391969911,1761035446030,-181.09763267,0.00031,120]
[391969912,1761035446039,-152.44,0.0003101,15]
[391969913,1761035446049,-153.16,0.00031016,15]
[391969914,1761035446058,-152.44,0.0003111,15]
[391969915,1761035446068,-153.16,0.00031116,15]
[391969916,1761035446077,-150.0,0.00031202,2]
[391969917,1761035446091,-150.0,0.00031202,2]
[391969918,1761035446101,-152.44,0.0003121,15]
[391969919,1761035446112,-153.16,0.00031216,15]
[391969920,1761035446123,-153.16,0.00031316,15]
[391969921,1761035446132,-153.16,0.00031416,15]
[391969922,1761035446142,-296.59015265,0.0003151,2]
[391969923,1761035446154,-153.16,0.00031516,15]
[391969924,1761035446164,-153.16,0.00031616,15]
[391969925,1761035446174,-4763.99,0.000317,7]
[391969926,1761035446183,-153.16,0.00031716,15]
[391969927,1761035446193,-153.16,0.00031816,15]
[391969928,1761035446202,-403.4556715,0.000319,120]
[391969929,1761035446212,-181.09763267,0.000319,120]
[391969930,1761035446221,-153.16,0.00031916,15]
[391969931,1761035446231,-153.16,0.00032016,15]
[391969932,1761035446241,-153.16,0.00032116,15]
[391969933,1761035446250,-150.0,0.00032146,2]
[391969934,1761035446259,-153.16,0.00032216,15]
[391969935,1761035446269,-153.16,0.00032316,15]
[391969936,1761035446278,-153.16,0.00032416,15]
[391969937,1761035446288,-864.0,0.00032422,30]
[391969938,1761035446297,-200.0,0.00032491,120]
[391969939,1761035446307,-153.16,0.00032516,15]
[391969940,1761035446317,-296.59015265,0.00032578,2]
[391969941,1761035446327,-153.16,0.00032616,15]
[391969943,1761035446336,-153.16,0.00032716,15]
[391969944,1761035446345,-2239.22604871,0.00032746,2]
[391969945,1761035446354,-200.0,0.00032783,120]
[391969946,1761035446363,-153.16,0.00032816,15]
[391969947,1761035446373,-207.92127,0.000329,120]
[391969948,1761035446382,-403.4556715,0.000329,120]
[391969949,1761035446392,-153.16,0.00032916,60]
[391969950,1761035446402,-21637.69837665,0.00033,5]
[391969951,1761035446412,-170.46549692,0.00033,120]
[391969952,1761035446421,-153.16,0.00033016,60]
[391969953,1761035446430,-153.16,0.00033116,60]
[391969954,1761035446440,-823.0,0.00033152,2]
[391969955,1761035446449,-434.877775,0.00033165,2]
[391969956,1761035446459,-150.22440166,0.000332,117]
[391969957,1761035446468,-150.22440164,0.000332,117]
[391969958,1761035446477,-150.22440164,0.000332,117]
[391969959,1761035446486,-153.16,0.00033216,60]
[391969960,1761035446495,-200.0,0.00033226,120]
[391969961,1761035446505,-334.67770878,0.00033287,120]
[391969962,1761035446514,-153.16,0.00033316,60]
[391969963,1761035446524,-153.16,0.00033416,60]
[391969964,1761035446533,-152.0051154,0.00033455,30]
[391969965,1761035446543,-151.0,0.00033455,30]
[391969966,1761035446552,-250.0,0.00033455,30]
[391969967,1761035446562,-151.0,0.00033455,30]
[391969968,1761035446571,-151.0,0.00033455,30]
[391969969,1761035446580,-250.0,0.00033455,30]
[391969970,1761035446589,-151.0,0.00033455,30]
[391969971,1761035446599,-250.0,0.00033455,30]
[391969972,1761035446609,-156.587,0.00033455,30]
[391969973,1761035446619,-156.587,0.00033455,30]
[391969974,1761035446629,-151.0,0.00033455,30]
[391969975,1761035446639,-250.0,0.00033455,30]
[391969976,1761035446649,-162.380719,0.00033455,30]
[391969977,1761035446659,-162.380719,0.00033455,30]
[391969978,1761035446668,-154.14049152,0.00033455,30]
[391969979,1761035446677,-250.0,0.00033455,30]
[391969980,1761035446687,-250.0,0.00033455,30]
[391969981,1761035446697,-181.15361331,0.00033455,30]
[391969982,1761035446708,-180.9932713,0.00033455,30]
[391969983,1761035446719,-151.0,0.00033455,30]
[391969984,1761035446733,-151.0,0.00033455,30]
[391969985,1761035446744,-250.0,0.00033455,30]
[391969986,1761035446755,-251.85938682,0.00033455,30]
[391969987,1761035446765,-414.0,0.00033455,30]
[391969988,1761035446774,-151.0,0.00033455,30]
[391969989,1761035446784,-151.0,0.00033455,30]
[391969990,1761035446794,-250.0,0.00033455,30]
[391969991,1761035446804,-429.318,0.00033455,30]
[391969992,1761035446814,-151.0,0.00033455,30]
[391969993,1761035446825,-151.0,0.00033455,30]
[391969994,1761035446835,-151.0,0.00033455,30]
[391969995,1761035446844,-250.0,0.00033455,30]
[391969996,1761035446855,-156.587,0.00033455,30]
[391969997,1761035446864,-445.202766,0.00033455,30]
[391969998,1761035446873,-151.0,0.00033455,30]
[391969999,1761035446883,-151.0,0.00033455,30]
[391970000,1761035446892,-162.380719,0.00033455,30]
[391970001,1761035446901,-250.0,0.00033455,30]
[391970002,1761035446911,-151.55256999,0.00033455,30]
[391970003,1761035446922,-461.67526834,0.00033455,30]
[391970004,1761035446931,-151.0,0.00033455,30]
[391970005,1761035446941,-250.0,0.00033455,30]
[391970006,1761035446949,-157.75103136,0.00033455,30]
[391970007,1761035446959,-250.0,0.00033455,30]
[391970008,1761035446968,-168.3888056,0.00033455,30]
[391970009,1761035446978,-151.0,0.00033455,30]
[391970010,1761035446987,-250.0,0.00033455,30]
[391970011,1761035446996,-250.0,0.00033455,30]
[391970012,1761035447006,-174.61919141,0.00033455,30]
[391970013,1761035447015,-478.75725327,0.00033455,30]
[391970014,1761035447024,-151.0,0.00033455,30]
[391970015,1761035447033,-250.0,0.00033455,30]
[391970016,1761035447042,-250.0,0.00033455,30]
[391970017,1761035447052,-181.08010149,0.00033455,30]
[391970018,1761035447061,-496.47127164,0.00033455,30]
[391970019,1761035447070,-151.0,0.00033455,30]
[391970020,1761035447081,-250.0,0.00033455,30]
[391970021,1761035447092,-250.0,0.00033455,30]
[391970022,1761035447102,-187.78006525,0.00033455,30]
[391970023,1761035447111,-514.84070869,0.00033455,30]
[391970024,1761035447121,-151.0,0.00033455,30]
[391970025,1761035447130,-250.0,0.00033455,30]
[391970026,1761035447139,-547.00673205,0.00033455,30]
[391970027,1761035447148,-194.72792766,0.00033455,30]
[391970028,1761035447159,-151.0,0.00033455,30]
[391970029,1761035447168,-279.84193016,0.00033455,30]
[391970030,1761035447178,-151.0,0.00033455,30]
[391970031,1761035447189,-250.0,0.00033455,30]
[391970032,1761035447199,-201.93286099,0.00033455,30]
[391970033,1761035447210,-151.0,0.00033455,30]
[391970034,1761035447220,-250.0,0.00033455,30]
[391970035,1761035447230,-151.0,0.00033455,30]
[391970036,1761035447241,-250.0,0.00033455,30]
[391970037,1761035447251,-209.40437684,0.00033455,30]
[391970038,1761035447262,-151.0,0.00033455,30]
[391970039,1761035447276,-151.0,0.00033455,30]
[391970040,1761035447287,-250.0,0.00033455,30]
[391970041,1761035447296,-250.0,0.00033455,30]
[391970042,1761035447309,-217.15233878,0.00033455,30]
[391970043,1761035447326,-154.32163064,0.00033455,30]
[391970044,1761035447336,-250.0,0.00033455,30]
[391970045,1761035447346,-250.0,0.00033455,30]
[391970046,1761035447356,-151.0,0.00033455,30]
[391970047,1761035447365,-225.18697532,0.00033455,30]
[391970048,1761035447375,-250.0,0.00033455,30]
[391970049,1761035447384,-151.0,0.00033455,30]
[391970050,1761035447394,-233.51889341,0.00033455,30]
[391970051,1761035447403,-250.0,0.00033455,30]
[391970052,1761035447413,-151.0,0.00033455,30]
[391970053,1761035447423,-250.0,0.00033455,30]
[391970054,1761035447432,-242.15909246,0.00033455,30]
[391970055,1761035447442,-250.0,0.00033455,30]
[391970056,1761035447451,-250.0,0.00033455,30]
[391970057,1761035447461,-293.33443629,0.00033455,30]
[391970058,1761035447471,-251.11897888,0.00033455,30]
[391970059,1761035447481,-250.0,0.00033455,30]
[391970060,1761035447491,-250.0,0.00033455,30]
[391970061,1761035447503,-250.0,0.00033455,30]
[391970062,1761035447512,-260.4103811,0.00033455,30]
[391970063,1761035447522,-250.0,0.00033455,30]
[391970064,1761035447532,-250.0,0.00033455,30]
[391970065,1761035447542,-270.0455652,0.00033455,30]
[391970066,1761035447551,-280.03725112,0.00033455,30]
[391970067,1761035447561,-250.0,0.00033455,30]
[391970068,1761035447570,-290.39862941,0.00033455,30]
[391970069,1761035447580,-250.0,0.00033455,30]
[391970070,1761035447590,-301.1433787,0.00033455,30]
[391970071,1761035447600,-250.0,0.00033455,30]
[391970072,1761035447610,-250.0,0.00033455,30]
[391970073,1761035447619,-250.0,0.00033455,30]
[391970074,1761035447629,-250.0,0.00033455,30]
[391970075,1761035447638,-250.0,0.00033455,30]
[391970076,1761035447648,-2352.3481767,0.00033456,2]
[391970077,1761035447657,-500.0,0.00033473,12]
[391970078,1761035447667,-500.0,0.00033474,12]
[391970079,1761035447676,-2164.0,0.00033479,2]
[391970080,1761035447686,-393.322,0.00033479,2]
[391970081,1761035447695,-411.0,0.00033479,2]
[391970082,1761035447705,-942.69,0.000335,14]
[391970083,1761035447714,-277.0,0.000335,7]
[391970084,1761035447724,-250.0,0.000335,10]
[391970085,1761035447733,-153.16,0.00033516,60]
[391970086,1761035447742,-4763.99,0.000336,7]
[391970087,1761035447751,-250.0,0.000336,10]
[391970088,1761035447761,-153.16,0.00033616,60]
[391970089,1761035447770,-150.22440164,0.00033646,118]
[391970090,1761035447780,-296.59015265,0.00033646,2]
[391970091,1761035447789,-382.5,0.00033681,30]
[391970092,1761035447799,-154.285212,0.00033688,20]
[391970093,1761035447808,-250.0,0.000337,10]
[391970094,1761035447818,-153.16,0.00033716,60]
[391970095,1761035447827,-154.285212,0.00033744,20]
[391970096,1761035447837,-151.100434,0.00033744,20]
[391970097,1761035447846,-50000.0,0.00033746,14]
[391970098,1761035447856,-500.0,0.00033746,2]
[391970099,1761035447868,-500.0,0.00033746,2]
[391970100,1761035447878,-500.0,0.00033746,2]
[391970101,1761035447887,-500.0,0.00033746,2]
[391970102,1761035447897,-500.0,0.00033746,2]
[391970103,1761035447907,-512.33199477,0.00033746,2]
[391970104,1761035447918,-355.01840785,0.00033746,2]
[391970105,1761035447927,-500.0,0.00033746,7]
[391970106,1761035447936,-500.0,0.00033746,7]
[391970107,1761035447946,-577.09122096,0.00033746,7]
[391970108,1761035447955,-500.0,0.00033746,7]
[391970109,1761035447964,-500.0,0.00033746,7]
[391970110,1761035447974,-500.0,0.00033746,7]
[391970111,1761035447983,-500.0,0.00033746,7]
[391970112,1761035447992,-500.0,0.00033746,7]
[391970113,1761035448002,-500.0,0.00033746,7]
[391970114,1761035448011,-500.0,0.00033746,7]
[391970115,1761035448021,-500.0,0.00033746,7]
[391970116,1761035448031,-500.0,0.00033746,7]
[391970117,1761035448157,-548.40378406,0.00033746,7]
[391970118,1761035448167,-3427.21,0.00033746,2]
[391970119,1761035448176,-3427.21,0.00033746,2]
[391970120,1761035448185,-3427.21,0.00033746,2]
[391970121,1761035448195,-3427.21,0.00033746,2]
[391970122,1761035448206,-3427.21,0.00033746,2]
[391970123,1761035448215,-3427.21,0.00033746,2]
[391970124,1761035448224,-3427.21,0.00033746,2]
[391970125,1761035448233,-3427.21,0.00033746,2]
[391970126,1761035448242,-3427.21,0.00033746,2]
[391970127,1761035448251,-3427.21,0.00033746,2]
[391970128,1761035448260,-3427.21,0.00033746,2]
[391970129,1761035448270,-3427.21,0.00033746,2]
[391970130,1761035448279,-3427.21,0.00033746,2]
[391970131,1761035448290,-3427.21,0.00033746,2]
[391970132,1761035448301,-3427.21,0.00033746,2]
[391970133,1761035448310,-3427.21,0.00033746,2]
[391970134,1761035448320,-3427.21,0.00033746,2]
[391970135,1761035448330,-3427.21,0.00033746,2]
[391970136,1761035448339,-3427.21,0.00033746,2]
[391970137,1761035448348,-3427.21,0.00033746,2]
[391970138,1761035448357,-3427.21,0.00033746,2]
[391970139,1761035448366,-3427.21,0.00033746,2]
[391970140,1761035448376,-3427.21,0.00033746,2]
[391970141,1761035448385,-3427.29806247,0.00033746,2]
[391970142,1761035448394,-500.0,0.00033746,2]
[391970143,1761035448403,-500.0,0.00033746,2]
[391970144,1761035448413,-500.0,0.00033746,2]
[391970145,1761035448423,-157.35090723,0.00033746,2]
[391970146,1761035448432,-500.0,0.00033746,7]
[391970147,1761035448441,-500.0,0.00033746,7]
[391970148,1761035448451,-550.8835734,0.00033746,7]
[391970149,1761035448460,-500.0,0.00033746,2]
[391970150,1761035448469,-500.0,0.00033746,2]
[391970151,1761035448479,-500.0,0.00033746,2]
[391970152,1761035448488,-500.0,0.00033746,2]
[391970153,1761035448497,-500.0,0.00033746,2]
[391970154,1761035448507,-391.68815901,0.00033746,2]
[391970155,1761035448516,-500.0,0.00033746,14]
[391970156,1761035448526,-611.66152276,0.00033746,14]
[391970157,1761035448535,-500.0,0.00033746,7]
[391970158,1761035448544,-500.0,0.00033746,7]
[391970159,1761035448553,-500.0,0.00033746,7]
[391970160,1761035448563,-500.0,0.00033746,7]
[391970161,1761035448572,-500.0,0.00033746,7]
[391970162,1761035448582,-500.0,0.00033746,7]
[391970163,1761035448592,-500.0,0.00033746,7]
[391970164,1761035448601,-645.93534841,0.00033746,7]
[391970165,1761035448610,-3132.34,0.00033746,15]
[391970166,1761035448619,-3132.34,0.00033746,15]
[391970167,1761035448628,-3132.34,0.00033746,15]
[391970168,1761035448638,-3132.34,0.00033746,15]
[391970169,1761035448647,-3132.34,0.00033746,15]
[391970170,1761035448656,-3132.34,0.00033746,15]
[391970171,1761035448665,-3132.34,0.00033746,15]
[391970172,1761035448674,-3132.34,0.00033746,15]
[391970173,1761035448684,-3132.34,0.00033746,15]
[391970174,1761035448694,-3132.34,0.00033746,15]
[391970175,1761035448706,-3132.34,0.00033746,15]
[391970176,1761035448715,-3132.34,0.00033746,15]
[391970177,1761035448726,-3132.34,0.00033746,15]
[391970178,1761035448737,-3132.34,0.00033746,15]
[391970179,1761035448747,-3132.34,0.00033746,15]
[391970180,1761035448757,-3132.34,0.00033746,15]
[391970181,1761035448766,-3132.34,0.00033746,15]
[391970182,1761035448775,-3132.34,0.00033746,15]
[391970183,1761035448784,-3132.34,0.00033746,15]
[391970184,1761035448794,-3132.34,0.00033746,15]
[391970185,1761035448804,-3132.34,0.00033746,15]
[391970186,1761035448813,-3132.34,0.00033746,15]
[391970187,1761035448823,-1392.76,0.00033746,3]
[391970188,1761035448832,-3132.34,0.00033746,15]
[391970189,1761035448841,-1392.76,0.00033746,3]
[391970190,1761035448850,-3132.39619658,0.00033746,15]
[391970191,1761035448860,-1392.76,0.00033746,3]
[391970192,1761035448869,-1392.76,0.00033746,3]
[391970193,1761035448878,-1392.76,0.00033746,3]
[391970194,1761035448888,-1392.76,0.00033746,3]
[391970195,1761035448898,-1392.76,0.00033746,3]
[391970196,1761035448907,-1392.76,0.00033746,3]
[391970197,1761035448916,-1392.76,0.00033746,3]
[391970198,1761035448925,-1392.76,0.00033746,3]
[391970199,1761035448935,-1392.76,0.00033746,3]
[391970200,1761035448944,-1392.76,0.00033746,3]
[391970201,1761035448953,-1392.76,0.00033746,3]
[391970202,1761035448962,-1392.76,0.00033746,3]
[391970203,1761035448971,-1392.76,0.00033746,3]
[391970204,1761035448980,-1392.76,0.00033746,3]
[391970205,1761035448989,-1392.76,0.00033746,3]
[391970206,1761035448999,-1392.76,0.00033746,3]
[391970207,1761035449008,-1392.76,0.00033746,3]
[391970208,1761035449018,-1392.76,0.00033746,3]
[391970209,1761035449027,-1392.76,0.00033746,3]
[391970210,1761035449036,-1392.76,0.00033746,3]
[391970211,1761035449046,-1392.76,0.00033746,3]
[391970212,1761035449055,-1392.9166523,0.00033746,3]
[391970213,1761035449065,-500.0,0.00033746,7]
[391970214,1761035449074,-582.60249942,0.00033746,7]
[391970215,1761035449088,-477.79534367,0.00033746,2]
[391970216,1761035449097,-30537.43731561,0.00033746,2]
[391970217,1761035449106,-189.75840641,0.00033746,2]
[391970218,1761035449115,-1401.27860835,0.00033746,2]
[391970219,1761035449125,-5913.99073976,0.00033746,2]
[391970220,1761035449134,-2447.96139885,0.00033746,14]
[391970221,1761035449143,-10714.04945435,0.00033746,2]
[391970222,1761035449153,-653.17084423,0.00033746,2]
[391970223,1761035449162,-203.58778624,0.00033746,2]
[391970224,1761035449172,-2920.0,0.00033746,2]
[391970225,1761035449181,-10878.82874006,0.00033746,2]
[391970226,1761035449191,-1447.05785181,0.00033746,2]
[391970227,1761035449200,-386.01933489,0.00033746,2]
[391970228,1761035449210,-201.95964407,0.00033746,2]
[391970229,1761035449219,-3156.53541242,0.00033746,2]
[391970230,1761035449229,-365.74192553,0.00033746,2]
[391970231,1761035449240,-167.07748782,0.00033746,2]
[391970232,1761035449251,-100545.85651647,0.00033746,2]
[391970233,1761035449261,-150.79845362,0.00033746,2]
[391970234,1761035449271,-259.32358751,0.00033746,2]
[391970235,1761035449280,-3777.11990216,0.00033746,2]
[391970236,1761035449289,-5000.0,0.00033746,14]
[391970237,1761035449299,-10000.0,0.00033746,5]
[391970238,1761035449309,-10000.0,0.00033746,5]
[391970239,1761035449321,-10000.0,0.00033746,5]
[391970240,1761035449331,-4451.43580058,0.00033746,8]
[391970241,1761035449339,-1180.31,0.00033746,2]
[391970242,1761035449349,-91493.16729503,0.00033746,2]
[391970243,1761035449359,-300.0,0.00033746,2]
[391970244,1761035449368,-22718.3668233,0.00033746,2]
[391970245,1761035449378,-3893.10441954,0.00033746,2]
[391970246,1761035449386,-812.25655075,0.00033746,2]
[391970247,1761035449395,-259.01545591,0.00033746,2]
[391970248,1761035449405,-297.81392319,0.00033746,2]
[391970249,1761035449416,-328.0399052,0.00033746,2]
[391970250,1761035449426,-292.76778766,0.00033746,2]
[391970251,1761035449436,-5831.09536147,0.00033746,14]
[391970252,1761035449445,-51845.21832731,0.00033746,2]
[391970253,1761035449455,-639.2462548,0.00033746,2]
[391970254,1761035449464,-1366.12565921,0.00033746,2]
[391970255,1761035449474,-157.11266514,0.00033746,2]
[391970256,1761035449483,-6312.50775792,0.00033746,2]
[391970257,1761035449492,-158.11512826,0.00033746,2]
[391970258,1761035449501,-31968.82404711,0.00033746,2]
[391970259,1761035449510,-242.10386531,0.00033746,10]
[391970260,1761035449519,-284.15909223,0.00033746,120]
[391970261,1761035449529,-179.48897396,0.00033746,120]
[391970262,1761035449539,-198.55092046,0.00033746,120]
[391970263,1761035449548,-286.08932599,0.00033746,120]
[391970264,1761035449557,-300.87346566,0.00033746,120]
[391970265,1761035449567,-300.0,0.00033746,120]
[391970266,1761035449576,-161.35070852,0.00033746,120]
[391970267,1761035449585,-444.3407766,0.00033746,120]
[391970268,1761035449595,-259.69067775,0.00033746,120]
[391970269,1761035449604,-153.32435057,0.00033746,120]
[391970270,1761035449614,-159.80147598,0.00033746,120]
[391970271,1761035449623,-165.25959598,0.00033746,120]
[391970272,1761035449633,-282.46856257,0.00033746,120]
[391970273,1761035449642,-288.28474673,0.00033746,120]
[391970274,1761035449651,-217.74220652,0.00033746,120]
[391970275,1761035449660,-277.79099188,0.00033746,120]
[391970276,1761035449669,-270.03341348,0.00033746,120]
[391970277,1761035449679,-269.63331058,0.00033746,120]
[391970278,1761035449687,-409.99873482,0.00033746,120]
[391970279,1761035449697,-183.50777363,0.00033746,120]
[391970280,1761035449707,-158.91284559,0.00033746,120]
[391970281,1761035449717,-254.97669398,0.00033746,120]
[391970282,1761035449727,-333.94892651,0.00033746,120]
[391970283,1761035449738,-310.56977881,0.00033746,120]
[391970284,1761035449749,-202.78006198,0.00033746,120]
[391970285,1761035449758,-204.33993367,0.00033746,120]
[391970286,1761035449769,-421.12202619,0.00033746,120]
[391970287,1761035449779,-309.22555487,0.00033746,120]
[391970288,1761035449789,-176.47860361,0.00033746,120]
[391970289,1761035449798,-403.40782,0.00033746,60]
[391970290,1761035449808,-403.40782,0.00033746,60]
[391970291,1761035449817,-206.08580937,0.00033746,120]
[391970292,1761035449826,-372.72902368,0.00033746,120]
[391970293,1761035449836,-403.40782,0.00033746,60]
[391970294,1761035449845,-403.40782,0.00033746,60]
[391970295,1761035449854,-403.40782,0.00033746,60]
[391970296,1761035449865,-186.10238602,0.00033746,120]
[391970297,1761035449874,-282.67285252,0.00033746,120]
[391970298,1761035449883,-167.05315016,0.00033746,120]